{"text_format":"2","workbook":"xlsx","n_sheets":2,"sheets":["Hoja1","Hoja2"],"not_rendered":{"charts":0,"images":1,"macros":0,"external_links":0,"defined_names":1,"comments":0,"pivot_tables":0},"unopened":[],"bounds":{"document_bytes":16777216,"sheet_cells":100000,"run_cost":"one","rows_first":2000,"rows_last":500,"rows_between":2000,"halvings":0,"cell_chars":16384,"cell_head_chars":4096},"cells_cut":0,"cells_raw":0,"read":"whole","date_system":"1900"}

{"sheet":"Hoja1","index":0,"n_rows":147,"n_cols":16382,"rows_kept":147,"cut":false,"hidden":false,"merged":[[14,1,14,2],[14,3,14,10],[15,1,15,2],[15,3,15,10],[16,1,16,2],[16,3,16,10],[6,5,6,9],[12,1,12,2],[12,3,12,10],[13,1,13,2],[13,3,13,10],[20,1,20,2],[20,3,20,10],[21,1,21,2],[21,3,21,10],[23,1,23,2],[23,3,23,10],[17,1,17,2],[17,3,17,10],[18,1,18,2],[18,3,18,10],[19,1,19,2],[19,3,19,10],[33,4,33,5],[34,4,34,5],[35,4,35,5],[36,4,36,5],[37,4,37,5],[38,4,38,5],[25,1,26,10],[28,1,28,10],[30,1,32,1],[30,2,32,2],[30,3,32,3],[30,4,32,5],[30,6,31,7],[30,8,32,8],[30,9,32,9],[30,10,32,10],[39,4,39,5],[40,1,40,10],[42,1,42,10],[44,1,46,1],[44,2,46,2],[44,3,46,5],[44,6,46,7],[44,8,46,8],[44,9,46,9],[44,10,46,10],[50,3,50,5],[50,6,50,7],[51,3,51,5],[51,6,51,7],[52,3,52,5],[52,6,52,7],[47,3,47,5],[47,6,47,7],[48,3,48,5],[48,6,48,7],[49,3,49,5],[49,6,49,7],[61,1,61,10],[62,1,62,2],[62,3,62,6],[62,8,62,9],[63,1,63,2],[63,3,63,6],[63,8,63,9],[53,3,53,5],[53,6,53,7],[54,1,54,8],[57,6,57,7],[58,6,58,7],[59,6,59,7],[68,1,68,2],[68,3,68,6],[69,1,69,2],[69,3,69,6],[70,1,70,2],[70,3,70,6],[64,1,64,2],[64,3,64,6],[64,8,64,9],[66,1,66,2],[66,3,66,6],[67,1,67,2],[67,3,67,6],[75,3,75,6],[76,1,76,2],[76,3,76,6],[71,1,71,2],[71,3,71,6],[72,1,72,2],[72,3,72,6],[73,1,73,2],[73,3,73,6],[86,1,86,10],[101,1,101,10],[115,1,115,10],[129,1,129,10],[146,1,148,10],[8,3,8,5],[8,6,8,9],[22,1,22,2],[22,3,22,10],[80,1,80,2],[80,3,80,6],[81,1,81,2],[81,3,81,6],[82,1,82,6],[84,1,85,10],[77,1,77,2],[77,3,77,6],[78,1,78,2],[78,3,78,6],[79,1,79,2],[79,3,79,6],[74,1,74,2],[74,3,74,6],[75,1,75,2]]}
[]
[]
[null,null,"MUNICIPALIDAD PROVINCIAL DE CHICLAYO"]
[{"$nulls":6},"FORMATO N° 01"]
[{"$nulls":6},"FICHA DE RESUMEN CURRICULAR"]
[]
[null,null,null,"PROCESO CAS N° ",null,"006-2020 - MPCH"]
[]
[null,"CODIGO DEL PUESTO AL QUE POSTULA: ",null,"PROFESIONAL EN ING. CIVIL O ARQUITECTURA",null,null,{"$f":"IF(D9=\"PROFESIONAL EN ING. CIVIL O ARQUITECTURA\",\"ICA001\",IF(D9=\"PROFESIONAL EN CONTABILIDAD, ADMINISTRACION, ECONOMIA O ING. INDUSTRIAL\",\"PC002\",\"\"))","v":"ICA001"}]
[]
[null,"1.   DATOS PERSONALES"]
[]
[null,"DNI N°"]
[null,"RUC"]
[null,"Apellidos y Nombres "]
[null,"Fecha de Nacimiento  Dia/Mes/Año"]
[null,"Dirección"]
[null,"Distrito "]
[null,"Estado Civil"]
[null,"Teléfono celular"]
[null,"Teléfono fijo"]
[null,"Correo electrónico"]
[null,"Num. Matrícula Colegio Profesional"]
[null,"Medio por el cual se enteró del proceso CAS."]
[]
[null,"Los datos consignados en esta ficha deberán ser acreditados en la presentacion física del Currículo. Cuando el postulante no adjunte documentos necesarios será declarado como NO APTO en la evaluación curricular."]
[]
[]
[null,"2.   FORMACION ACADEMICA"]
[]
[null,"GRADO DE INSTRUCCIÓN","NOMBRE DE LA INSTITUCION","NIVEL ALCANZADO","PROFESIÓN O ESPECIALIDAD\n(AÑO DE ESTUDIOS EN CASO DE TENER SÓLO ESTUDIOS ESCOLARES)",null,"MES/AÑO",null,"Años de estudios","Que documento tiene que sustente lo señalado","(*)  N° de Folio\nPARA SER LLENADO EN LA ETAPA DE LA EVALAUCION CURRICULAR"]
[]
[{"$nulls":6},"DESDE\n(MES - AÑO)\nmmm-yyyy","HASTA\n(MES - AÑO)\nmmm-yyyy"]
[null,"FORMACION ESCOLAR"]
[null,"FORMACION TECNICA"]
[null,"FORMACION UNIVERSITARIA"]
[null,"MAESTRÍA"]
[null,"DOCTORADO"]
[null,"OTROS ESTUDIOS (Otras profesiones,  Especialidades y/o Maestrias)"]
[null,"OTROS ESTUDIOS (Otras profesiones,  Especialidades y/o Maestrias)"]
[null,"(*)    DEBERA SER LLENADO OBLIGATORIAMENTE EN LA PRESENTACION DEL CURRICULUM DOCUMENTADO"]
[]
[null,"3.  ESTUDIOS RELACIONADOS A ESPECIALIZACIONES O DIPLOMADOS   (RELACIONADO A LOS TERMINOS DE REFERENCIA)."]
[]
[null,"NOMBRE DEL DIPLOMADOEN (Estudiado en los últimos 10 años)","CONDICION","INSTITUCION",null,null,"MES Y AÑO EN LOS QUE TERMINÓ EL DIPLOMADO\n(mmm-yyyy)",null,"HORAS LECTIVAS  DE DURACION DEL DIPLOMADO","Que documento tiene Ud.  que sustente lo señalado","(*)  N° de Folio\nPARA SER LLENADO EN LA ETAPA DE LA EVALAUCION CURRICULAR"]
{"$rows_empty":9}
[null,"(*)    DEBERA SER LLENADO OBLIGATORIAMENTE EN LA PRESENTACION DEL CURRICULUM DOCUMENTADO"]
[]
[null,"OTROS DATOS"]
[null,"Se encuentra Usted Colegiado",{"$nulls":4},"Es Ud. Una Persona con Discapacidad",null,null,"NUM CARNET"]
[null,"se encuentra Usted Habilitado",{"$nulls":4},"Ud. Es Licenciado de las Fuerzas Armadas"]
[null,"Pertence Usted al Cuerpo de Gerentes Publicos?",{"$nulls":4},"Ud. Es Deportista calificado"]
[]
[null,"CAPACITACIONES COMPLEMENTARIAS  (ACORDE PARA EL CUMPLIMIENTO DE LOS REQUISITOS MINIMOS)"]
[null,"CURSOS (Seminarios, Computación, Ingles considere agregar el nivel alcanzado, acorde a los requisitos del perfil)",null,"NIVEL",null,null,null,"Número de Horas de Estudio","Que documento tiene que sustente lo señalado",null,"(*)  N° de Folio\nPARA SER LLENADO EN LA ETAPA DE LA EVALAUCION CURRICULAR"]
[null,"INGLES"]
[null,"Computación"]
[]
[null,"CURSOS (Seminario, Congresos, Talleres  acordes a los requisitos del perfil en los10 últimos años)",null,"INTITUCION",null,null,null,"FECHA INICIO\n(MES - AÑO)\nmmm-yyyy","TIEMPO  DE ESTUDIOS  EN HORAS","¿Qué documento tiene que sustente lo señalado?","(*)  N° de Folio\nPARA SER LLENADO EN LA ETAPA DE LA EVALAUCION CURRICULAR"]
{"$rows_empty":15}
[null,"(*)    DEBERA SER LLENADO OBLIGATORIAMENTE EN LA PRESENTACION DEL CURRICULUM DOCUMENTADO"]
[]
[null,"4.    EXPERIENCIA LABORAL  (COMPLETAR CON AQUELLOS PUESTOS DE TRABAJO AFINES A LAS FUNCIONES DEL SERVICIO SOLICITADO, INICIANDO POR LA EXPERIENCIA MÁS RECIENTE)."]
[]
[null,"4.1 Experiencia laboral en el cargo o afines en el Sector Público."]
[]
[null,"EMPRESA Y/O INSTITUCION","UNIDAD ORGANICA / AREA","SECTOR","CARGO / NOMBRE DE LA FUNCION","DESCRIPCIONES DE LAS FUNCIONES PRINCIPALES RELACIONAS AL PUESTO QUE POSTULA","FECHA DE INICIO\nD/M/A","FECHA DE TERMINO\nD/M/A","Años/Meses/Días DE EXPERIENCIA","¿Qué documento tiene que sustente lo señalado?","(*)  N° de Folio\nPARA SER LLENADO EN LA ETAPA DE LA EVALUACION CURRICULAR"]
[{"$nulls":8},{"$f":"IF(ISERROR(DATEDIF(G90,H90,\"Y\")),\"Ingrese Correctamente las Fechas\",IF(ISBLANK(G90),\"\",IF(ISBLANK(H90),\"\",DATEDIF(G90,H90,\"Y\")&\" a, \"&DATEDIF(G90,H90,\"YM\")&\" m, \"&DATEDIF(G90,H90,\"MD\")+1&\" d\")))","v":""},{"$nulls":16370},{"$f":"IF(ISERROR(DATEDIF(G90,H90,\"Y\")),\"\",IF(ISBLANK(G90),\"\",IF(ISBLANK(H90),\"\",DATEDIF(G90,H90,\"Y\"))))","v":""},{"$f":"IF(ISERROR(DATEDIF(G90,H90,\"Y\")),\"\",IF(ISBLANK(G90),\"\",IF(ISBLANK(H90),\"\",DATEDIF(G90,H90,\"Ym\"))))","v":""},{"$f":"IF(ISERROR(DATEDIF(G90,H90,\"Y\")),\"\",IF(ISBLANK(G90),\"\",IF(ISBLANK(H90),\"\",DATEDIF(G90,H90,\"Md\"))))","v":""}]
[{"$nulls":8},{"$f":"IF(ISERROR(DATEDIF(G91,H91,\"Y\")),\"Ingrese Correctamente las Fechas\",IF(ISBLANK(G91),\"\",IF(ISBLANK(H91),\"\",DATEDIF(G91,H91,\"Y\")&\" a, \"&DATEDIF(G91,H91,\"YM\")&\" m, \"&DATEDIF(G91,H91,\"MD\")+1&\" d\")))","v":""},{"$nulls":16370},"","",""]
[{"$nulls":8},"",{"$nulls":16370},"","",""]
[{"$nulls":8},"",{"$nulls":16370},"","",""]
[{"$nulls":8},"",{"$nulls":16370},"","",""]
[{"$nulls":8},"",{"$nulls":16370},"","",""]
[{"$nulls":8},"",{"$nulls":16370},"","",""]
[{"$nulls":8},"",{"$nulls":16370},"","",""]
[{"$nulls":8},"",{"$nulls":16370},"","",""]
[{"$nulls":8},"",{"$nulls":16370},"","",""]
[{"$nulls":7},"TOTAL DE AÑOS DE EXPERIENCIA",{"$f":"XEZ100&\" a, \"&XFA100&\" m, \"&XFB100&\" d\"","v":"0 a, 0 m, 0 d"},{"$nulls":16370},{"$f":"SUM(XEZ90:XEZ99)+QUOTIENT(SUM(XFA90:XFA99),12)","v":0},{"$f":"MOD(SUM(XFA90:XFA99)+QUOTIENT(SUM(XFB90:XFB99),30),12)","v":0},{"$f":"MOD(SUM(XFB90:XFB99),30)","v":0}]
[]
[null,"4.2 Experiencia laboral en el cargo o afines en el Sector Privado."]
[]
[null,"EMPRESA Y/O INSTITUCION","UNIDAD ORGANICA / AREA","SECTOR","CARGO / NOMBRE DE LA FUNCION","DESCRIPCIONES DE LAS FUNCIONES PRINCIPALES RELACIONAS AL PUESTO QUE POSTULA","FECHA DE INICIO\nD/M/A","FECHA DE TERMINO\nD/M/A","Años/Meses/Días DE EXPERIENCIA","¿Qué documento tiene que sustente lo señalado?","(*)  N° de Folio\nPARA SER LLENADO EN LA ETAPA DE LA EVALUACION CURRICULAR"]
[{"$nulls":8},{"$f":"IF(ISERROR(DATEDIF(G105,H105,\"Y\")),\"Ingrese Correctamente las Fechas\",IF(ISBLANK(G105),\"\",IF(ISBLANK(H105),\"\",DATEDIF(G105,H105,\"Y\")&\" a, \"&DATEDIF(G105,H105,\"YM\")&\" m, \"&DATEDIF(G105,H105,\"MD\")+1&\" d\")))","v":""},{"$nulls":16370},{"$f":"IF(ISERROR(DATEDIF(G105,H105,\"Y\")),\"\",IF(ISBLANK(G105),\"\",IF(ISBLANK(H105),\"\",DATEDIF(G105,H105,\"Y\"))))","v":""},{"$f":"IF(ISERROR(DATEDIF(G105,H105,\"Y\")),\"\",IF(ISBLANK(G105),\"\",IF(ISBLANK(H105),\"\",DATEDIF(G105,H105,\"Ym\"))))","v":""},{"$f":"IF(ISERROR(DATEDIF(G105,H105,\"Y\")),\"\",IF(ISBLANK(G105),\"\",IF(ISBLANK(H105),\"\",DATEDIF(G105,H105,\"Md\"))))","v":""}]
[{"$nulls":8},{"$f":"IF(ISERROR(DATEDIF(G106,H106,\"Y\")),\"Ingrese Correctamente las Fechas\",IF(ISBLANK(G106),\"\",IF(ISBLANK(H106),\"\",DATEDIF(G106,H106,\"Y\")&\" a, \"&DATEDIF(G106,H106,\"YM\")&\" m, \"&DATEDIF(G106,H106,\"MD\")+1&\" d\")))","v":""},{"$nulls":16370},"","",""]
[{"$nulls":8},"",{"$nulls":16370},"","",""]
[{"$nulls":8},"",{"$nulls":16370},"","",""]
[{"$nulls":8},"",{"$nulls":16370},"","",""]
[{"$nulls":8},"",{"$nulls":16370},"","",""]
[{"$nulls":8},"",{"$nulls":16370},"","",""]
[{"$nulls":8},"",{"$nulls":16370},"","",""]
[{"$nulls":8},"",{"$nulls":16370},"","",""]
[{"$nulls":7},"TOTAL DE AÑOS DE EXPERIENCIA",{"$f":"XEZ114&\" a, \"&XFA114&\" m, \"&XFB114&\" d\"","v":"0 a, 0 m, 0 d"},{"$nulls":16370},{"$f":"SUM(XEZ105:XEZ113)+QUOTIENT(SUM(XFA105:XFA113),12)","v":0},{"$f":"MOD(SUM(XFA105:XFA113)+QUOTIENT(SUM(XFB105:XFB113),30),12)","v":0},{"$f":"MOD(SUM(XFB105:XFB113),30)","v":0}]
[]
[null,"4.3 Otra Experiencia laboral en el Sector Público"]
[]
[null,"EMPRESA Y/O INSTITUCION","UNIDAD ORGANICA / AREA","SECTOR","CARGO / NOMBRE DE LA FUNCION","DESCRIPCIONES DE LAS FUNCIONES PRINCIPALES RELACIONAS AL PUESTO QUE POSTULA","FECHA DE INICIO\nD/M/A","FECHA DE TERMINO\nD/M/A","Años/Meses/Días DE EXPERIENCIA","¿Qué documento tiene que sustente lo señalado?","(*)  N° de Folio\nPARA SER LLENADO EN LA ETAPA DE LA EVALUACION CURRICULAR"]
[{"$nulls":8},{"$f":"IF(ISERROR(DATEDIF(G119,H119,\"Y\")),\"Ingrese Correctamente las Fechas\",IF(ISBLANK(G119),\"\",IF(ISBLANK(H119),\"\",DATEDIF(G119,H119,\"Y\")&\" a, \"&DATEDIF(G119,H119,\"YM\")&\" m, \"&DATEDIF(G119,H119,\"MD\")+1&\" d\")))","v":""},{"$nulls":16370},{"$f":"IF(ISERROR(DATEDIF(G119,H119,\"Y\")),\"\",IF(ISBLANK(G119),\"\",IF(ISBLANK(H119),\"\",DATEDIF(G119,H119,\"Y\"))))","v":""},{"$f":"IF(ISERROR(DATEDIF(G119,H119,\"Y\")),\"\",IF(ISBLANK(G119),\"\",IF(ISBLANK(H119),\"\",DATEDIF(G119,H119,\"Ym\"))))","v":""},{"$f":"IF(ISERROR(DATEDIF(G119,H119,\"Y\")),\"\",IF(ISBLANK(G119),\"\",IF(ISBLANK(H119),\"\",DATEDIF(G119,H119,\"Md\"))))","v":""}]
[{"$nulls":8},{"$f":"IF(ISERROR(DATEDIF(G120,H120,\"Y\")),\"Ingrese Correctamente las Fechas\",IF(ISBLANK(G120),\"\",IF(ISBLANK(H120),\"\",DATEDIF(G120,H120,\"Y\")&\" a, \"&DATEDIF(G120,H120,\"YM\")&\" m, \"&DATEDIF(G120,H120,\"MD\")+1&\" d\")))","v":""},{"$nulls":16370},"","",""]
[{"$nulls":8},"",{"$nulls":16370},"","",""]
[{"$nulls":8},"",{"$nulls":16370},"","",""]
[{"$nulls":8},"",{"$nulls":16370},"","",""]
[{"$nulls":8},"",{"$nulls":16370},"","",""]
[{"$nulls":8},"",{"$nulls":16370},"","",""]
[{"$nulls":8},"",{"$nulls":16370},"","",""]
[{"$nulls":8},"",{"$nulls":16370},"","",""]
[{"$nulls":7},"TOTAL DE AÑOS DE EXPERIENCIA",{"$f":"XEZ128&\" a, \"&XFA128&\" m, \"&XFB128&\" d\"","v":"0 a, 0 m, 0 d"},{"$nulls":16370},{"$f":"SUM(XEZ119:XEZ127)+QUOTIENT(SUM(XFA119:XFA127),12)","v":0},{"$f":"MOD(SUM(XFA119:XFA127)+QUOTIENT(SUM(XFB119:XFB127),30),12)","v":0},{"$f":"MOD(SUM(XFB119:XFB127),30)","v":0}]
[]
[null,"4.4 Otra Experiencia laboral en el Sector Privado"]
[]
[null,"EMPRESA Y/O INSTITUCION","UNIDAD ORGANICA / AREA","SECTOR","CARGO / NOMBRE DE LA FUNCION","DESCRIPCIONES DE LAS FUNCIONES PRINCIPALES RELACIONAS AL PUESTO QUE POSTULA","FECHA DE INICIO\nD/M/A","FECHA DE TERMINO\nD/M/A","Años/Meses/Días DE EXPERIENCIA","¿Qué documento tiene que sustente lo señalado?","(*)  N° de Folio\nPARA SER LLENADO EN LA ETAPA DE LA EVALUACION CURRICULAR"]
[{"$nulls":8},{"$f":"IF(ISERROR(DATEDIF(G133,H133,\"Y\")),\"Ingrese Correctamente las Fechas\",IF(ISBLANK(G133),\"\",IF(ISBLANK(H133),\"\",DATEDIF(G133,H133,\"Y\")&\" a, \"&DATEDIF(G133,H133,\"YM\")&\" m, \"&DATEDIF(G133,H133,\"MD\")+1&\" d\")))","v":""},{"$nulls":16370},{"$f":"IF(ISERROR(DATEDIF(G133,H133,\"Y\")),\"\",IF(ISBLANK(G133),\"\",IF(ISBLANK(H133),\"\",DATEDIF(G133,H133,\"Y\"))))","v":""},{"$f":"IF(ISERROR(DATEDIF(G133,H133,\"Y\")),\"\",IF(ISBLANK(G133),\"\",IF(ISBLANK(H133),\"\",DATEDIF(G133,H133,\"Ym\"))))","v":""},{"$f":"IF(ISERROR(DATEDIF(G133,H133,\"Y\")),\"\",IF(ISBLANK(G133),\"\",IF(ISBLANK(H133),\"\",DATEDIF(G133,H133,\"Md\"))))","v":""}]
[{"$nulls":8},{"$f":"IF(ISERROR(DATEDIF(G134,H134,\"Y\")),\"Ingrese Correctamente las Fechas\",IF(ISBLANK(G134),\"\",IF(ISBLANK(H134),\"\",DATEDIF(G134,H134,\"Y\")&\" a, \"&DATEDIF(G134,H134,\"YM\")&\" m, \"&DATEDIF(G134,H134,\"MD\")+1&\" d\")))","v":""},{"$nulls":16370},"","",""]
[{"$nulls":8},"",{"$nulls":16370},"","",""]
[{"$nulls":8},"",{"$nulls":16370},"","",""]
[{"$nulls":8},"",{"$nulls":16370},"","",""]
[{"$nulls":8},"",{"$nulls":16370},"","",""]
[{"$nulls":8},"",{"$nulls":16370},"","",""]
[{"$nulls":8},"",{"$nulls":16370},"","",""]
[{"$nulls":8},"",{"$nulls":16370},"","",""]
[{"$nulls":7},"TOTAL DE AÑOS DE EXPERIENCIA",{"$f":"XEZ142&\" a, \"&XFA142&\" m, \"&XFB142&\" d\"","v":"0 a, 0 m, 0 d"},{"$nulls":16370},{"$f":"SUM(XEZ133:XEZ141)+QUOTIENT(SUM(XFA133:XFA141),12)","v":0},{"$f":"MOD(SUM(XFA133:XFA141)+QUOTIENT(SUM(XFB133:XFB141),30),12)","v":0},{"$f":"MOD(SUM(XFB133:XFB141),30)","v":0}]
[null,"(*)    DEBERA SER LLENADO OBLIGATORIAMENTE EN LA PRESENTACION DEL CURRICULUM DOCUMENTADO"]
[]
[null,"FECHA:"]
[]
[null,"DECLARO BAJO JURAMENTO  QUE LA INFORMACIÓN QUE HE PROPORCIONADO VIA CORREO ELECTRONICO, ES VERAZ  Y ASUMO LAS RESPONSABILIDADES Y CONSECUENCIAS LEGALES QUE ELLO PRODUZCA"]

{"sheet":"Hoja2","index":1,"n_rows":2,"n_cols":94,"rows_kept":2,"cut":false,"hidden":true,"merged":[]}
["NUM","DNI N°","RUC","Apellidos y Nombres ","Fecha de Nacimiento  Dia/Mes/Año","Dirección","Distrito ","Estado Civil","Teléfono celular","Teléfono fijo","Correo electrónico","Medio por el cual se enteró del proceso CAS.","COLEGIADO","HABILITADO","NUM MATRICULA COLEGIO PROF.","LICENCIADO FF AA","CON DISCAPACIDAD","DEPORTISTA CALIFICADO","NIVEL FORMACION ESCOLAR","NIVEL FORMACION ESCOLAR\nACREDITACION","FORMACION TECNICA CARRERA","FORMACION TECNICA NIVEL","FORMACION TECNICA ACREDITACION","FORMACION UNIVERSITARIA CARRERA","FORMACION UNIVERSITARIA NIVEL","FORMACION UNIVERSITARIA ACREDITACION","MAESTRÍA\nESPECIALIDAD","MAESTRÍA NIVEL\n","MAESTRIA\nACREDITACION","DOCTORADO ESPECIALIDAD","DOCTORADO NIVEL","DOCTORADO\nACREDITACION","OTROS ESTUDIOS1 (Otras profesiones,  Especialidades y/o Maestrias) Especialidad","OTROS ESTUDIOS 1 (Otras profesiones,  Especialidades y/o Maestrias) ACREDITACION","OTROS ESTUDIOS2 (Otras profesiones,  Especialidades y/o Maestrias)\nESPECIALIDAD","OTROS ESTUDIOS2 (Otras profesiones,  Especialidades y/o Maestrias)\nACREDITACION","DIPLOMADO 1\nESPECIALIDAD","DIPLOMADO 1\nHORAS","DIPLOMADO 1\nACREDITACION","DIPLOMADO 2\nESPECIALIDAD","DIPLOMADO 2\nHORAS","DIPLOMADO 2\nACREDITACION","DIPLOMADO 3\nESPECIALIDAD","DIPLOMADO 3\nHORAS","DIPLOMADO 3\nACREDITACION","DIPLOMADO 4\nESPECIALIDAD","DIPLOMADO 4\nHORAS","DIPLOMADO 4\nACREDITACION","DIPLOMADO 5\nESPECIALIDAD","DIPLOMADO 5\nHORAS","DIPLOMADO 5\nACREDITACION","DIPLOMADO 6\nESPECIALIDAD","DIPLOMADO 6\nHORAS","DIPLOMADO 6\nACREDITACION","DIPLOMADO 7\nESPECIALIDAD","DIPLOMADO 7\nHORAS","DIPLOMADO 7\nACREDITACION","CURSO 1\nESPECIALIDAD","CURSO 1\nFECHA","CURSO 1\nHORAS","CURSO 2\nESPECIALIDAD","CURSO 2\nFECHA","CURSO 2\nHORAS","CURSO 3\nESPECIALIDAD","CURSO 3\nFECHA","CURSO 3\nHORAS","CURSO 4\nESPECIALIDAD","CURSO 4\nFECHA","CURSO 4\nHORAS","CURSO 5\nESPECIALIDAD","CURSO 5\nFECHA","CURSO 5\nHORAS","CURSO 6\nESPECIALIDAD","CURSO 6\nFECHA","CURSO 6\nHORAS","CURSO 7\nESPECIALIDAD","CURSO 7\nFECHA","CURSO 7\nHORAS","CURSO 8\nESPECIALIDAD","CURSO 8\nFECHA","CURSO 8\nHORAS","CURSO 9\nESPECIALIDAD","CURSO 9\nFECHA","CURSO 9\nHORAS","CURSO 10\nESPECIALIDAD","CURSO 10\nFECHA","CURSO 10\nHORAS","CURSO 11\nESPECIALIDAD","CURSO 11\nFECHA","CURSO 11\nHORAS","EXPERIENCIA ESPECIFICA SECTOR PUB","EXPERIENCIA ESPECIFICA SECTOR PRIV","OTRA EXPERIENCIA SECTOR PUB","OTRA EXPERIENCIA SECTOR PRIV"]
[null,{"$f":"Hoja1!D13","v":0},{"$f":"Hoja1!D14","v":0},{"$f":"Hoja1!D15","v":0},{"$f":"Hoja1!D16","v":"00:00:00"},{"$f":"Hoja1!D17","v":0},{"$f":"Hoja1!D18","v":0},{"$f":"Hoja1!D19","v":0},{"$f":"Hoja1!D20","v":0},{"$f":"Hoja1!D21","v":0},{"$f":"Hoja1!D22","v":0},{"$f":"Hoja1!D24","v":0},{"$f":"Hoja1!C58","v":0},{"$f":"Hoja1!C59","v":0},{"$f":"Hoja1!D23","v":0},{"$f":"Hoja1!I59","v":0},{"$f":"Hoja1!K58","v":0},{"$f":"Hoja1!I60","v":0},{"$f":"Hoja1!D34","v":0},{"$f":"Hoja1!J34","v":0},{"$f":"Hoja1!E35","v":0},{"$f":"Hoja1!D35","v":0},{"$f":"Hoja1!J35","v":0},{"$f":"Hoja1!E35","v":0},{"$f":"Hoja1!D34","v":0},{"$f":"Hoja1!J36","v":0},{"$f":"Hoja1!E37","v":0},{"$f":"Hoja1!D37","v":0},{"$f":"Hoja1!J37","v":0},{"$f":"Hoja1!E38","v":0},{"$f":"Hoja1!D38","v":0},{"$f":"Hoja1!J38","v":0},{"$f":"Hoja1!E40","v":0},{"$f":"Hoja1!J39","v":0},{"$f":"Hoja1!E40","v":0},{"$f":"Hoja1!J40","v":0},{"$f":"Hoja1!B48","v":0},{"$f":"Hoja1!I48","v":0},{"$f":"Hoja1!J48","v":0},{"$f":"Hoja1!B49","v":0},{"$f":"Hoja1!I49","v":0},{"$f":"Hoja1!J49","v":0},{"$f":"Hoja1!B50","v":0},{"$f":"Hoja1!I50","v":0},{"$f":"Hoja1!J50","v":0},{"$f":"Hoja1!B51","v":0},{"$f":"Hoja1!I51","v":0},{"$f":"Hoja1!J51","v":0},{"$f":"Hoja1!B52","v":0},{"$f":"Hoja1!I52","v":0},{"$f":"Hoja1!J52","v":0},{"$f":"Hoja1!B53","v":0},{"$f":"Hoja1!I53","v":0},{"$f":"Hoja1!J53","v":0},{"$f":"Hoja1!B54","v":0},{"$f":"Hoja1!I54","v":0},{"$f":"Hoja1!J54","v":0},{"$f":"Hoja1!B68","v":0},{"$f":"Hoja1!H68","v":"00:00:00"},{"$f":"Hoja1!I68","v":0},{"$f":"Hoja1!B69","v":0},{"$f":"Hoja1!H69","v":"00:00:00"},{"$f":"Hoja1!I69","v":0},{"$f":"Hoja1!B70","v":0},{"$f":"Hoja1!H70","v":"00:00:00"},{"$f":"Hoja1!I70","v":0},{"$f":"Hoja1!B71","v":0},{"$f":"Hoja1!H71","v":"00:00:00"},{"$f":"Hoja1!I71","v":0},{"$f":"Hoja1!B72","v":0},{"$f":"Hoja1!H72","v":"00:00:00"},{"$f":"Hoja1!I72","v":0},{"$f":"Hoja1!B73","v":0},{"$f":"Hoja1!H73","v":"00:00:00"},{"$f":"Hoja1!I73","v":0},{"$f":"Hoja1!B74","v":0},{"$f":"Hoja1!H74","v":"00:00:00"},{"$f":"Hoja1!I74","v":0},{"$f":"Hoja1!B75","v":0},{"$f":"Hoja1!H75","v":"00:00:00"},{"$f":"Hoja1!I75","v":0},{"$f":"Hoja1!B76","v":0},{"$f":"Hoja1!H76","v":"00:00:00"},{"$f":"Hoja1!I76","v":0},{"$f":"Hoja1!B77","v":0},{"$f":"Hoja1!H77","v":"00:00:00"},{"$f":"Hoja1!I77","v":0},{"$f":"Hoja1!B78","v":0},{"$f":"Hoja1!H78","v":"00:00:00"},{"$f":"Hoja1!I78","v":0},{"$f":"Hoja1!I100","v":"0 a, 0 m, 0 d"},{"$f":"Hoja1!I114","v":"0 a, 0 m, 0 d"},{"$f":"Hoja1!I128","v":"0 a, 0 m, 0 d"},{"$f":"Hoja1!I142","v":"0 a, 0 m, 0 d"}]